bitfinex-derivatives/quotes_SOLF0:USTF0_20241009
["timestamp","ask_amount","ask_price","bid_price","bid_amount"]
[1728500865741,3.5562,140.71,140.68,3.5566]
[1728500867849,3.5562,140.71,140.64,26.9312]
[1728500868237,3.5562,140.71,140.68,3.5567]
[1728500868637,3.5559,140.72,140.68,3.5567]
[1728500868845,17.08,140.72,140.66,3.5572]
[1728500869147,3.5568,140.68,140.64,4.2312]
[1728500869349,17.08,140.72,140.65,3.5574]
[1728500869553,17.08,140.7,140.64,4.2312]
[1728500869742,3.557,140.68,140.64,4.2312]
[1728500869944,17.08,140.7,140.65,3.5575]
[1728500870141,17.08,140.7,140.64,4.2312]
[1728500870341,5.62,140.69,140.64,4.2312]
[1728500870552,3.5572,140.67,140.64,7.7889]
[1728500872547,3.5569,140.68,140.65,3.5575]
[1728500877146,5.62,140.69,140.64,4.2312]
[1728500877353,5.62,140.69,140.67,3.557]
[1728500877756,22.7,140.72,140.64,4.2312]
[1728500878053,17.08,140.71,140.64,2.829]
[1728500878555,3.5572,140.67,140.64,2.829]
[1728500878946,3.5572,140.67,140.64,6.3867]
[1728500880553,3.5576,140.65,140.63,0.12502]
[1728500881260,3.5576,140.65,140.63,3.68302]
[1728500882247,3.5578,140.64,140.63,0.12502]
[1728500882762,3.48494877,140.67,140.63,0.12502]
[1728500883168,3.5577,140.65,140.63,3.68302]
[1728500883351,22.7,140.68,140.63,0.12502]
[1728500884150,17.08,140.66,140.63,0.12502]
[1728500884363,17.08,140.64,140.63,0.12502]
[1728500884565,22.7,140.64,140.63,0.12502]
[1728500884757,22.7,140.64,140.57,0.12502]
[1728500884953,17.08,140.62,140.57,0.12502]
[1728500885146,5.62,140.64,140.57,0.12502]
[1728500885352,3.5591,140.59,140.57,0.12502]
[1728500885656,5.62,140.64,140.57,0.12502]
[1728500885958,17.08,140.63,140.57,0.12502]
[1728500886157,3.5588,140.61,140.58,3.5593]
[1728500886351,17.08,140.63,140.57,0.12502]
[1728500886552,17.08,140.61,140.57,0.12502]
[1728500887356,5.62,140.6,140.57,0.12502]
[1728500887656,17.08,140.58,140.57,0.12502]
[1728500887857,22.7,140.58,140.57,0.12502]
[1728500888365,9.1793,140.58,140.57,0.12502]
[1728500888568,17.08,140.61,140.57,0.12502]
[1728500888769,5.62,140.6,140.57,0.12502]
[1728500889060,3.51423173,140.59,140.57,0.12502]
[1728500889268,3.5592,140.59,140.57,0.12502]
[1728500889564,5.62,140.6,140.57,0.12502]
[1728500890158,3.5592,140.59,140.57,0.12502]
[1728500890369,5.62,140.6,140.57,0.12502]
[1728500890656,5.62,140.6,140.57,3.68452]
[1728500890863,9.179,140.6,140.57,3.68452]
[1728500891067,12.78771889,140.6,140.57,3.68452]
[1728500891259,9.179,140.6,140.57,3.68452]
[1728500891663,12.78878697,140.6,140.57,3.68452]
[1728500891964,9.179,140.6,140.57,3.68452]
[1728500892363,5.62,140.6,140.57,0.12502]
[1728500894160,17.08,140.63,140.57,0.12502]
[1728500894464,9.2648713,140.62,140.57,0.12502]
[1728500894860,3.5586,140.61,140.58,3.5592]
[1728500895359,9.1784,140.62,140.59,3.559]
[1728500896264,1.0319,140.67,140.57,0.12502]
[1728500896462,3.5578,140.64,140.6,3.5586]
[1728500896864,3.5578,140.64,140.57,0.12502]
[1728500897062,7.04630422,140.65,140.62,3.5582]
[1728500897364,7.19117746,140.65,140.62,3.5582]
[1728500897571,5.62,140.66,140.62,3.5582]
[1728500897867,5.62,140.66,140.61,3.5584]
[1728500897868,3.61293213,140.65,140.61,3.5584]
[1728500898063,22.7,140.66,140.58,17.08]
[1728500898260,3.5582,140.63,140.58,17.08]
[1728500898566,3.5582,140.63,140.57,0.12502]
[1728500899263,26.27876056,140.66,140.57,0.12502]
[1728500899867,3.5582,140.63,140.57,0.12502]
[1728500900168,3.5582,140.63,140.6,3.5587]
[1728500900868,26.27876056,140.66,140.57,0.12502]
[1728500901261,3.5585,140.62,140.57,0.12502]
[1728500901770,3.5585,140.62,140.59,3.5589]
[1728500902167,3.5582,140.63,140.6,3.5587]
[1728500902870,0.12502,140.69,140.58,17.08]
[1728500903166,5.62,140.68,140.64,3.5576]
[1728500903362,3.59381093,140.67,140.64,3.5576]
[1728500903566,0.12502,140.69,140.64,3.5576]
[1728500903567,5.62,140.68,140.64,3.5576]
[1728500903765,3.5572,140.67,140.64,3.5576]
[1728500904268,5.62,140.68,140.63,3.5579]
[1728500904571,7.18660379,140.67,140.63,3.5579]
[1728500904766,7.18660379,140.67,140.61,17.08]
[1728500904966,7.18660379,140.67,140.64,3.5577]
[1728500905160,3.62940379,140.67,140.61,17.08]
[1728500905369,3.5575,140.66,140.6,6.9499]
[1728500906170,3.5575,140.66,140.63,3.558]
[1728500908375,0.12502,140.69,140.63,17.08]
[1728500908573,0.12502,140.69,140.6,10.42787326]
[1728500908771,0.12502,140.69,140.61,17.08]
[1728500909069,3.5574,140.66,140.63,3.5579]
[1728500909576,0.12502,140.69,140.61,17.08]
[1728500909760,3.5572,140.67,140.64,3.5578]
[1728500911077,0.12502,140.69,140.64,3.5578]
[1728500911370,0.12502,140.69,140.61,17.08]
[1728500911569,0.12502,140.69,140.62,1.4413]
[1728500911766,3.5572,140.67,140.62,1.4413]
[1728500912169,3.5572,140.67,140.64,3.5577]
[1728500914568,3.5574,140.66,140.63,3.5579]
[1728500915665,3.5574,140.66,140.62,1.4413]
[1728500915876,3.557,140.67,140.65,3.5575]
[1728500916075,3.557,140.67,140.62,1.4413]
[1728500916576,3.557,140.67,140.64,3.5576]
[1728500916771,3.557,140.67,140.62,1.4413]
[1728500916965,3.5569,140.68,140.65,3.5573]
[1728500917279,0.12502,140.69,140.63,17.08]
[1728500917479,3.68172,140.69,140.67,3.5569]
[1728500917669,3.68172,140.69,140.63,18.4378]
[1728500917982,0.12502,140.69,140.63,18.4378]
[1728500918376,0.12502,140.69,140.65,17.08]
[1728500918681,0.12502,140.69,140.66,1.3679]
[1728500918863,0.12502,140.69,140.68,3.5568]
[1728500920976,5.62,140.74,140.66,18.4479]
[1728500921169,5.62,140.74,140.7,3.5561]
[1728500921981,3.5557,140.73,140.7,3.5561]
[1728500922572,3.5558,140.72,140.7,3.5561]
[1728500924382,5.62,140.74,140.66,18.4479]
[1728500924383,5.62,140.74,140.66,1.3679]
[1728500924780,5.62,140.74,140.66,18.4479]
[1728500925077,5.62,140.74,140.7,3.5562]
[1728500925578,3.5556,140.73,140.7,3.5562]
[1728500926577,10.94,140.71,140.69,3.5564]
[1728500927080,10.94,140.73,140.68,10.94]
[1728500927578,10.94,140.73,140.69,10.94]
[1728500927877,14.4957,140.73,140.7,3.5562]
[1728500928078,0.12502,140.75,140.7,10.94]
[1728500928283,3.68022,140.75,140.72,3.5557]
[1728500928581,10.94,140.73,140.69,12.3169]
[1728500929078,3.5561,140.71,140.69,1.3769]
[1728500929287,10.94,140.72,140.68,3.5567]
[1728500930276,3.5562,140.71,140.68,3.5567]
[1728500930492,10.94,140.72,140.68,3.5567]
[1728500931079,3.5561,140.71,140.68,3.5567]
[1728500931382,10.94,140.72,140.68,3.5567]
[1728500931584,3.5561,140.71,140.68,3.5567]
[1728500933182,3.5561,140.71,140.68,14.4967]
[1728500933684,10.94,140.72,140.68,14.4967]
[1728500933887,3.5563,140.7,140.68,14.4967]
[1728500936787,10.94,140.72,140.67,10.94]
[1728500937088,3.5564,140.7,140.68,3.5566]
[1728500937386,10.94,140.73,140.67,10.94]
[1728500937787,3.5565,140.7,140.67,14.4968]
[1728500938089,3.5565,140.7,140.67,10.94]
[1728500938277,3.5565,140.7,140.68,3.5567]
[1728500940489,10.94,140.73,140.67,10.94]
[1728500940791,3.5562,140.71,140.69,3.5564]
[1728500940990,3.5562,140.71,140.67,10.94]
[1728500941187,3.5562,140.71,140.68,3.5566]
[1728500941387,10.94,140.73,140.68,3.5566]
[1728500943089,3.5561,140.71,140.68,3.5566]
[1728500943993,10.94,140.7,140.66,1.3679]
[1728500944498,3.5562,140.71,140.68,3.5567]
[1728500945684,3.5563,140.7,140.68,3.5567]
[1728500945890,3.5563,140.7,140.67,14.4969]
[1728500946287,3.5562,140.71,140.67,10.94]
[1728500946593,3.5562,140.71,140.68,3.5567]
[1728500946998,3.5563,140.7,140.68,3.5567]
[1728500947287,3.5563,140.7,140.66,12.3079]
[1728500947486,10.94,140.7,140.67,3.5569]
[1728500947693,3.5565,140.69,140.66,1.3679]
[1728500948091,3.5569,140.68,140.66,1.3679]
[1728500948290,3.5569,140.68,140.65,3.5574]
[1728500948492,10.94,140.69,140.65,3.5574]
[1728500948689,3.5571,140.67,140.65,3.5574]
[1728500950290,10.94,140.69,140.65,3.5574]
[1728500950291,3.5569,140.68,140.65,3.5574]
[1728500952291,3.5569,140.68,140.66,3.5572]
[1728500953796,5.62,140.73,140.64,12.3782]
[1728500953797,25.00085368,140.75,140.64,1.4382]
[1728500954095,0.12502,140.75,140.71,10.94]
[1728500954291,0.12502,140.75,140.73,10.94]
[1728500955097,0.12502,140.75,140.7,4.1569]
[1728500955305,3.5553,140.74,140.7,15.0969]
[1728500956201,3.5553,140.74,140.71,3.5559]
[1728500957198,3.68012,140.75,140.72,3.5556]
[1728500957399,0.12502,140.75,140.72,10.94]
[1728500958196,0.12502,140.75,140.73,3.5553]
[1728500959003,0.12502,140.75,140.74,3.5553]
[1728500960201,3.68022,140.75,140.72,3.5557]
[1728500960409,0.12502,140.75,140.72,3.5557]
[1728500961396,3.5553,140.74,140.72,3.5557]
[1728500962006,0.12502,140.75,140.7,4.1569]
[1728500962198,0.12502,140.75,140.71,17.08]
[1728500962707,0.12502,140.75,140.74,3.5553]
[1728500963112,0.12502,140.75,140.71,17.08]
[1728500963301,0.12502,140.75,140.7,4.1569]
[1728500963907,3.5554,140.74,140.71,3.5558]
[1728500964101,3.5554,140.74,140.7,4.1569]
[1728500964810,0.12502,140.75,140.7,4.1569]
[1728500965001,3.5557,140.73,140.7,4.1569]
[1728500966101,3.5557,140.73,140.71,3.556]
[1728500967310,3.5557,140.73,140.7,4.1569]
[1728500967609,3.5557,140.73,140.7,7.713]
[1728500968108,3.5558,140.72,140.7,7.713]
[1728500968308,17.08,140.74,140.68,3.5566]
[1728500968507,17.08,140.74,140.66,5.62]
[1728500969012,3.5564,140.7,140.67,3.5568]
[1728500969613,3.5564,140.7,140.68,3.5567]
[1728500972118,3.5567,140.69,140.67,3.5569]
[1728500972408,3.56361574,140.71,140.64,4.2716]
[1728500972615,22.7,140.71,140.64,4.2716]
[1728500972810,3.5572,140.67,140.64,7.8293]
[1728500973007,3.5572,140.67,140.64,4.2716]
[1728500973610,3.5572,140.67,140.65,3.5574]
[1728500974313,3.5569,140.68,140.65,3.5574]
[1728500975513,3.5337441,140.7,140.64,4.2716]
[1728500975813,3.5572,140.67,140.65,3.5575]
[1728500979218,3.5569,140.68,140.65,3.5575]
[1728500981118,3.5573,140.66,140.64,7.8293]
[1728500981415,17.08,140.69,140.64,1.4214]
[1728500981617,3.5574,140.66,140.64,3.5578]
[1728500981814,17.08,140.69,140.63,0.12502]
[1728500982319,3.61061551,140.68,140.63,3.68292]
[1728500983015,3.5575,140.66,140.63,3.68292]
[1728500984318,3.5575,140.66,140.64,3.5578]
[1728500985322,3.5575,140.66,140.63,3.68292]
[1728500985521,3.61061551,140.68,140.63,3.68292]
[1728500985522,3.5576,140.65,140.63,3.68292]
[1728500986316,3.61061551,140.68,140.63,3.68292]
[1728500986521,3.5574,140.66,140.63,3.68292]
[1728500987422,3.5574,140.66,140.63,0.12502]
[1728500987721,3.5574,140.66,140.64,3.5578]
[1728500988416,14.4874,140.66,140.64,3.5578]
[1728500989419,10.93,140.66,140.63,0.12502]
[1728500990019,3.5577,140.65,140.63,3.68302]
[1728500991018,10.93,140.66,140.63,0.12502]
[1728500991222,14.4874,140.66,140.64,3.5576]
[1728500992420,3.5574,140.66,140.64,3.5576]
[1728500995026,17.08,140.69,140.63,0.12502]
[1728500995230,3.5572,140.67,140.63,0.12502]
[1728500995724,3.5572,140.67,140.64,3.5576]
[1728500996421,3.5567,140.69,140.63,0.12502]
[1728500996626,22.7,140.71,140.63,0.12502]
[1728500996833,22.7,140.71,140.64,5.62]
[1728500997131,3.5566,140.69,140.64,6.9431]
[1728500997424,26.20810182,140.71,140.64,6.9431]
[1728500997626,3.5564,140.7,140.67,3.5569]
[1728500998927,3.5566,140.69,140.67,3.5569]
[1728501000824,3.5566,140.69,140.64,6.9431]
[1728501001126,20.58810182,140.71,140.64,24.0231]
[1728501001127,20.6361,140.71,140.64,24.0231]
[1728501001378,0.12502,140.75,140.64,24.0231]
[1728501001379,17.08,140.73,140.64,24.0231]
[1728501002029,17.08,140.7,140.64,6.9431]
[1728501002332,26.27921349,140.7,140.64,1.3231]
[1728501002725,3.5572,140.67,140.64,4.8809]
[1728501002920,17.08,140.67,140.63,0.12502]
[1728501004030,3.5578,140.64,140.63,0.12502]
[1728501005627,3.5577,140.65,140.63,0.12502]
[1728501009837,3.5574,140.66,140.63,0.12502]
[1728501010230,3.5574,140.66,140.63,3.68292]
[1728501010432,3.5575,140.65,140.63,3.68292]
[1728501012538,17.08,140.67,140.63,0.12502]
[1728501012740,3.5578,140.64,140.63,0.12502]
[1728501013034,17.08,140.67,140.63,0.12502]
[1728501013540,3.5577,140.65,140.63,0.12502]
[1728501014139,3.5578,140.64,140.63,0.12502]
[1728501016835,9.1778,140.64,140.63,0.12502]
[1728501020132,26.2578,140.64,140.63,0.12502]
[1728501020331,44.03,140.64,140.57,0.12502]
[1728501020538,3.5593,140.58,140.57,0.12502]
[1728501022537,3.5591,140.59,140.57,0.12502]
[1728501022733,14.4991,140.59,140.57,0.12502]
[1728501023342,3.5593,140.58,140.57,0.12502]
[1728501026947,3.5591,140.59,140.57,0.12502]
[1728501027143,17.1,140.62,140.57,0.12502]
[1728501027546,3.5588,140.61,140.57,3.68442]
[1728501028142,3.5588,140.61,140.58,3.5592]
[1728501028741,17.1,140.62,140.57,0.12502]
[1728501028951,3.5583,140.62,140.59,3.5589]
[1728501031145,3.5583,140.62,140.51,60.35276742]
[1728501031146,3.5602,140.55,140.51,0.12502]
[1728501031351,20.66416623,140.56,140.51,0.12502]
[1728501031549,17.1,140.56,140.51,0.12502]
[1728501031757,3.5603,140.54,140.51,3.68602]
[1728501033051,5.62,140.57,140.51,3.68602]
[1728501033052,5.62,140.59,140.51,17.22502]
[1728501033244,5.62,140.59,140.52,1.3705]
[1728501033647,3.5598,140.57,140.54,3.5602]
[1728501037952,17.1,140.58,140.52,1.3705]
[1728501038149,3.5601,140.55,140.52,1.3705]
[1728501038355,17.1,140.58,140.53,3.5606]
[1728501038552,17.1,140.58,140.52,1.3705]
[1728501039257,3.5602,140.55,140.52,4.9312]
[1728501041854,17.1,140.58,140.52,1.3705]
[1728501042058,3.5605,140.54,140.52,1.3705]
[1728501043163,3.5605,140.54,140.52,4.9313]
[1728501044265,3.5601,140.55,140.53,3.5605]
[1728501046464,100.43290992,140.61,140.52,18.4705]
[1728501046670,96.86910464,140.61,140.53,1.3934]
[1728501046868,100.43392928,140.61,140.54,5.62]
[1728501047264,96.86910464,140.61,140.56,3.5597]
[1728501047665,3.5592,140.59,140.56,3.5597]
[1728501048471,3.5594,140.58,140.56,3.5597]
[1728501052864,20.66126444,140.62,140.55,1.3807]
[1728501053170,22.72,140.62,140.55,1.3807]
[1728501053769,22.72,140.62,140.56,3.5597]
[1728501054570,3.5591,140.59,140.56,3.5597]
[1728501054973,10.94,140.57,140.55,1.3807]
[1728501055274,3.5598,140.56,140.55,1.3807]
[1728501056074,10.94,140.57,140.53,4.9539]
[1728501056275,3.5601,140.55,140.52,4.9312]
[1728501056765,3.5601,140.55,140.52,1.3705]
[1728501056966,3.5601,140.55,140.53,3.5604]
[1728501059765,10.94,140.57,140.53,3.5604]
[1728501060067,3.5599,140.56,140.53,3.5604]
[1728501060264,10.94,140.57,140.53,3.5604]
[1728501060465,3.5602,140.55,140.53,3.5604]
[1728501062375,10.94,140.57,140.52,12.3105]
[1728501062579,16.56,140.58,140.54,3.5602]
[1728501063081,10.94,140.57,140.53,3.5606]
[1728501064273,3.5599,140.56,140.53,3.5606]
[1728501064975,3.5599,140.56,140.52,1.3705]
[1728501065277,20.22594537,140.63,140.55,10.94]
[1728501065475,20.22594537,140.63,140.58,10.94]
[1728501065667,3.5588,140.6,140.58,14.4992]
[1728501065869,3.5588,140.6,140.58,3.5592]
[1728501068280,10.94,140.61,140.57,3.5595]
[1728501068679,3.559,140.6,140.57,3.5595]
[1728501068881,10.94,140.6,140.56,6.3911]
[1728501069185,10.94,140.59,140.56,1.4436]
[1728501069679,10.94,140.59,140.55,5.62]
[1728501069680,3.5594,140.58,140.55,5.62]
[1728501069874,10.94,140.59,140.55,9.18]
[1728501070083,10.94,140.59,140.55,3.56]
[1728501070273,10.94,140.59,140.52,4.0741]
[1728501070274,10.94,140.58,140.53,10.94]
[1728501070469,3.5601,140.55,140.53,3.5605]
[1728501070675,10.94,140.58,140.52,20.6341]
[1728501071073,3.56,140.56,140.54,3.5603]
[1728501071568,10.94,140.58,140.54,3.5603]
[1728501071773,10.94,140.58,140.53,10.94]
[1728501072383,3.5597,140.57,140.55,3.5601]
[1728501073071,10.94,140.58,140.53,10.94]
[1728501073278,14.4993,140.58,140.53,10.94]
[1728501074172,3.5596,140.57,140.54,3.5602]
[1728501074369,10.94,140.58,140.52,20.6341]
[1728501074982,3.56,140.56,140.53,3.5604]
[1728501075182,10.94,140.58,140.53,3.5604]
[1728501075482,10.94,140.56,140.51,11.06502]
[1728501075781,10.94,140.56,140.52,3.5608]
[1728501075782,3.5602,140.55,140.52,3.5608]
[1728501076282,10.94,140.56,140.53,3.5605]
[1728501076479,10.94,140.58,140.52,10.94]
[1728501076683,5.62,140.59,140.52,10.94]
[1728501076876,14.4998,140.57,140.54,3.5601]
[1728501077284,10.94,140.57,140.52,10.94]
[1728501077781,3.5599,140.56,140.53,3.5604]
[1728501078178,3.5596,140.57,140.55,3.56]
[1728501078381,10.94,140.58,140.55,3.56]
[1728501079384,3.5596,140.57,140.55,3.56]
[1728501080979,3.5596,140.57,140.54,3.5602]
[1728501085191,10.94,140.58,140.52,13.7666]
[1728501085399,3.5599,140.56,140.52,13.7666]
[1728501086391,3.5599,140.56,140.54,3.5602]
[1728501088887,10.94,140.57,140.52,6.3874]
[1728501088888,3.5604,140.54,140.52,6.3874]
[1728501090202,10.94,140.57,140.52,2.8266]
[1728501090496,3.5602,140.55,140.53,3.5606]
[1728501092996,3.5599,140.56,140.54,3.5603]
[1728501093295,3.5599,140.56,140.52,13.7666]
[1728501093704,14.4997,140.57,140.52,13.7666]
[1728501094002,10.94,140.57,140.52,13.7666]
[1728501094902,3.5599,140.56,140.54,3.5601]
[1728501096203,3.5599,140.56,140.52,2.8266]
[1728501096393,3.5597,140.57,140.53,10.94]
[1728501096697,5.6,140.62,140.56,10.94]
[1728501096920,3.5587,140.61,140.56,10.94]
[1728501097499,3.5593,140.59,140.55,5.6]
[1728501098004,5.6,140.62,140.54,3.5602]
[1728501098005,10.94,140.58,140.54,3.5602]
[1728501098200,10.94,140.57,140.53,5.6]
[1728501098401,10.94,140.57,140.53,9.1605]
[1728501098705,14.4997,140.57,140.53,5.6]
[1728501098996,14.4997,140.57,140.54,3.5602]
[1728501099596,10.94,140.57,140.53,9.1605]
[1728501100208,3.56,140.56,140.53,9.1605]
[1728501100592,3.56,140.56,140.54,3.5603]
[1728501101299,3.56,140.56,140.53,9.1605]
[1728501103423,3.56,140.56,140.54,3.5603]
[1728501106001,3.5602,140.55,140.52,4.9775]
[1728501106195,10.94,140.54,140.51,0.12502]
[1728501106398,3.5607,140.53,140.51,3.68602]
[1728501108312,3.5604,140.54,140.51,3.68602]
[1728501108505,5.6,140.59,140.53,10.94]
[1728501108805,10.94,140.58,140.53,10.94]
[1728501109110,3.5597,140.57,140.54,3.5602]
[1728501109702,3.5598,140.56,140.53,10.94]
[1728501109899,10.94,140.57,140.52,3.5606]
[1728501110103,10.94,140.57,140.51,11.06502]
[1728501110305,10.94,140.57,140.51,16.66502]
[1728501110502,3.5599,140.56,140.53,3.5604]
[1728501111107,10.94,140.54,140.51,0.12502]
[1728501111307,14.43681827,140.54,140.51,0.12502]
[1728501111709,3.5607,140.53,140.51,0.12502]
[1728501112413,14.5008,140.52,140.51,0.12502]
[1728501123026,3.562,140.48,140.45,3.68742]
[1728501123328,10.94,140.46,140.45,0.12502]
[1728501123524,10.94,140.47,140.45,0.12502]
[1728501124119,3.5624,140.46,140.45,0.12502]
[1728501124728,14.5024,140.46,140.45,0.12502]
[1728501126028,3.5624,140.46,140.45,0.12502]
[1728501126231,14.5024,140.46,140.45,0.12502]
[1728501126629,14.502,140.48,140.45,0.12502]
[1728501126829,10.94,140.47,140.45,0.12502]
[1728501127333,3.5624,140.46,140.45,0.12502]
[1728501127534,10.94,140.48,140.45,0.12502]
[1728501127732,14.5024,140.46,140.45,0.12502]
[1728501128226,10.94,140.46,140.4,1.3645]
[1728501128424,5.6,140.45,140.39,0.12502]
[1728501128735,10.94,140.43,140.39,0.12502]
[1728501129133,10.94,140.43,140.4,3.5637]
[1728501129328,10.94,140.43,140.39,0.12502]
[1728501130022,14.5032,140.43,140.39,3.68912]
[1728501130225,10.94,140.4,140.39,0.12502]
[1728501130422,14.5039,140.4,140.39,0.12502]
[1728501131234,10.94,140.4,140.39,0.12502]
[1728501132135,3.64821538,140.43,140.39,0.12502]
[1728501132335,10.94,140.42,140.39,0.12502]
[1728501132631,14.5035,140.42,140.39,0.12502]
[1728501133035,10.94,140.42,140.39,0.12502]
[1728501133230,3.5636,140.41,140.39,0.12502]
[1728501133435,9.24516273,140.45,140.39,0.12502]
[1728501133733,10.94,140.42,140.4,3.5637]
[1728501133925,10.94,140.43,140.39,0.12502]
[1728501134635,10.94,140.43,140.4,3.5638]
[1728501134839,10.94,140.43,140.39,0.12502]
[1728501135027,10.94,140.43,140.41,3.5635]
[1728501136438,10.94,140.45,140.4,10.94]
[1728501136939,10.94,140.45,140.43,3.5629]
[1728501137144,9.1625,140.46,140.41,1.3409]
[1728501137145,10.94,140.46,140.41,12.2809]
[1728501137437,10.94,140.46,140.45,3.5626]
[1728501137636,10.94,140.48,140.42,14.49544668]
[1728501137843,14.51861268,140.49,140.44,10.94]
[1728501138135,10.94,140.5,140.45,10.94]
[1728501138442,10.94,140.49,140.44,10.94]
[1728501138637,3.56114908,140.5,140.44,3.5627]
[1728501138638,14.5022,140.47,140.44,3.5627]
[1728501139041,14.5022,140.47,140.45,3.5626]
[1728501139338,10.94,140.47,140.45,3.5626]
[1728501139541,3.5619,140.48,140.45,3.5626]
[1728501140338,10.94,140.5,140.45,10.94]
[1728501140641,3.5617,140.49,140.45,10.94]
[1728501140841,10.94,140.5,140.45,10.94]
[1728501141045,10.94,140.5,140.48,3.5617]
[1728501142136,14.44095386,140.5,140.48,3.5617]
[1728501142338,14.5015,140.5,140.47,3.562]
[1728501143242,10.94,140.48,140.43,10.94]
[1728501143441,10.94,140.48,140.46,3.5621]
[1728501143842,10.94,140.47,140.42,1.4416]
[1728501144144,10.94,140.45,140.42,1.4416]
[1728501144546,10.94,140.45,140.43,3.5631]
[1728501145143,14.5026,140.45,140.43,3.5631]
[1728501146048,10.94,140.45,140.43,3.5631]
[1728501147345,3.563,140.44,140.42,5.0049]
[1728501147552,10.94,140.46,140.42,1.4416]
[1728501148154,14.5026,140.46,140.43,3.5629]
[1728501148652,14.5026,140.45,140.43,3.5629]
[1728501149238,14.5026,140.45,140.42,1.4416]
[1728501149442,14.5026,140.45,140.42,5.0048]
[1728501150545,3.5629,140.44,140.42,1.4416]
[1728501150748,10.94,140.45,140.42,1.4416]
[1728501151247,10.94,140.45,140.42,5.0049]
[1728501151248,14.5027,140.45,140.42,5.0049]
[1728501152352,14.5027,140.45,140.42,3.5633]
[1728501152551,10.94,140.44,140.41,1.3409]
[1728501152852,14.503,140.44,140.41,4.9045]
[1728501153455,14.5029,140.44,140.41,4.9045]
[1728501153855,14.5029,140.44,140.42,3.5633]
[1728501154857,3.5631,140.43,140.41,4.9044]
[1728501155053,10.94,140.44,140.41,1.3409]
[1728501155648,14.5029,140.44,140.42,3.5633]
[1728501157158,10.94,140.44,140.42,3.5633]
[1728501157458,14.503,140.44,140.42,3.5633]
[1728501158257,3.5631,140.43,140.41,4.9044]
[1728501160459,10.94,140.44,140.39,18.07002]
[1728501160661,3.5632,140.43,140.39,18.07002]
[1728501161761,3.5626,140.45,140.43,3.563]
[1728501162464,10.94,140.46,140.43,3.563]
[1728501162665,10.94,140.46,140.45,3.5626]
[1728501163472,10.94,140.46,140.44,3.5627]
[1728501163762,10.94,140.46,140.42,10.94]
[1728501163957,10.94,140.46,140.43,3.5631]
[1728501164161,10.94,140.46,140.42,10.94]
[1728501165077,14.5025,140.46,140.43,3.563]
[1728501165659,14.5025,140.46,140.43,3.5631]
[1728501168269,10.94,140.45,140.4,12.3383]
[1728501168654,10.94,140.44,140.4,1.3983]
[1728501169169,3.5632,140.43,140.4,1.3983]
[1728501169361,10.94,140.42,140.39,1.53002]
[1728501169964,10.94,140.41,140.39,0.12502]
[1728501170369,14.5036,140.41,140.39,3.68902]
[1728501171870,10.94,140.41,140.39,0.12502]
[1728501172078,10.94,140.41,140.4,3.5639]
[1728501174364,3.5632,140.43,140.41,3.5635]